[Event "Titled Tuesday Blitz May 16 Early 2023"]
[White "Rastbod, Ali"]
[Black "Lenderman, Aleksandr"]
[WhiteFideId "12567477"]
[BlackFideId "2021285"]
[WhiteElo "2274"]
[BlackElo "2607"]
[Result "0-1"]
[Round "03"]
[TimeControl "180+2"]
[Date "2023.05.16"]
[WhiteClock "0:00:03"]
[BlackClock "0:00:26"]

1. d4 {[%clk 0:02:54]}  e6 {[%clk 0:02:57]} 2. Nf3 {[%clk 0:02:51]}  Nf6 {[%clk 0:02:55]} 3. c4 {[%clk 0:02:50]}  d5 {[%clk 0:02:50]} 4. e3 {[%clk 0:02:41]}  a6 {[%clk 0:02:50]} 5. Nbd2 {[%clk 0:02:31]}  c5 {[%clk 0:02:41]} 6. cxd5 {[%clk 0:02:31]}  exd5 {[%clk 0:02:42]} 7. dxc5 {[%clk 0:02:30]}  Bxc5 {[%clk 0:02:36]} 8. Bd3 {[%clk 0:02:29]}  Nc6 {[%clk 0:02:35]} 9. O-O {[%clk 0:02:29]}  O-O {[%clk 0:02:35]} 10. a3 {[%clk 0:02:30]}  Re8 {[%clk 0:02:32]} 11. b4 {[%clk 0:02:29]}  Bd6 {[%clk 0:02:20]} 12. Bb2 {[%clk 0:02:27]}  Bg4 {[%clk 0:02:19]} 13. Be2 {[%clk 0:02:26]}  Rc8 {[%clk 0:02:17]} 14. h3 {[%clk 0:02:26]}  Bf5 {[%clk 0:02:08]} 15. Rc1 {[%clk 0:02:23]}  h6 {[%clk 0:02:02]} 16. Nd4 {[%clk 0:02:20]}  Bd7 {[%clk 0:02:00]} 17. Nxc6 {[%clk 0:02:16]}  Rxc6 {[%clk 0:01:52]} 18. Bf3 {[%clk 0:02:05]}  Bb8 {[%clk 0:01:49]} 19. Rxc6 {[%clk 0:01:55]}  bxc6 {[%clk 0:01:48]} 20. Re1 {[%clk 0:01:50]}  Nh7 {[%clk 0:01:33]} 21. Bg4 {[%clk 0:01:34]}  Ng5 {[%clk 0:01:22]} 22. Bxd7 {[%clk 0:01:18]}  Qxd7 {[%clk 0:01:20]} 23. Qg4 {[%clk 0:01:08]}  f5 {[%clk 0:01:16]} 24. Qh5 {[%clk 0:01:00]}  f4 {[%clk 0:01:16]} 25. Bd4 {[%clk 0:00:44]}  Ne6 {[%clk 0:01:10]} 26. exf4 {[%clk 0:00:44]}  Qf7 {[%clk 0:01:08]} 27. Qxf7+ {[%clk 0:00:39]}  Kxf7 {[%clk 0:01:09]} 28. Nf3 {[%clk 0:00:35]}  Bxf4 {[%clk 0:01:02]} 29. Kf1 {[%clk 0:00:27]}  a5 {[%clk 0:00:53]} 30. Ne5+ {[%clk 0:00:20]}  Bxe5 {[%clk 0:00:48]} 31. Bxe5 {[%clk 0:00:21]}  Ra8 {[%clk 0:00:37]} 32. Rc1 {[%clk 0:00:18]}  axb4 {[%clk 0:00:36]} 33. axb4 {[%clk 0:00:19]}  Ra6 {[%clk 0:00:36]} 34. f4 {[%clk 0:00:15]}  h5 {[%clk 0:00:33]} 35. g4 {[%clk 0:00:15]}  hxg4 {[%clk 0:00:33]} 36. hxg4 {[%clk 0:00:16]}  Rb6 {[%clk 0:00:32]} 37. Ke2 {[%clk 0:00:15]}  Rxb4 {[%clk 0:00:29]} 38. Rxc6 {[%clk 0:00:15]}  Nxf4+ {[%clk 0:00:29]} 39. Kf3 {[%clk 0:00:14]}  Ne6 {[%clk 0:00:29]} 40. Rd6 {[%clk 0:00:10]}  Rb3+ {[%clk 0:00:27]} 41. Kg2 {[%clk 0:00:08]}  Rb5 {[%clk 0:00:27]} 42. Kg3 {[%clk 0:00:07]}  Ng5 {[%clk 0:00:25]} 43. Kf4 {[%clk 0:00:05]}  Ne6+ {[%clk 0:00:25]} 44. Kg3 {[%clk 0:00:06]}  Rc5 {[%clk 0:00:25]} 45. Ra6 {[%clk 0:00:06]}  d4 {[%clk 0:00:25]} 46. Bf4 {[%clk 0:00:06]}  Rc3+ {[%clk 0:00:25]} 47. Kh4 {[%clk 0:00:06]}  Nxf4 {[%clk 0:00:25]} 48. Kg5 {[%clk 0:00:06]}  Ne6+ {[%clk 0:00:26]} 49. Kf5 {[%clk 0:00:06]}  Rf3+ {[%clk 0:00:25]} 50. Ke5 {[%clk 0:00:07]}  Re3+ {[%clk 0:00:26]} 51. Kf5 {[%clk 0:00:07]}  d3 {[%clk 0:00:25]} 52. Ra7+ {[%clk 0:00:06]}  Kg8 {[%clk 0:00:25]} 53. Rd7 {[%clk 0:00:06]}  Nf8 {[%clk 0:00:25]} 54. Rd4 {[%clk 0:00:06]}  Rf3+ {[%clk 0:00:25]} 55. Ke4 {[%clk 0:00:06]}  Rh3 {[%clk 0:00:25]} 56. Kf5 {[%clk 0:00:06]}  Rg3 {[%clk 0:00:25]} 57. Kf4 {[%clk 0:00:03]}  Ne6+ {[%clk 0:00:26]} 0-1


[Site "https://www.chess.com"]

[Event "Titled Tuesday Blitz May 16 Early 2023"]
[White "Kovalenko, Igor"]
[Black "Hua, Lefong"]
[WhiteFideId "14117908"]
[BlackFideId "2602253"]
[WhiteElo "2574"]
[BlackElo "2694"]
[Result "1-0"]
[Round "03"]
[TimeControl "180+2"]
[Date "2023.05.16"]
[WhiteClock "0:00:49"]
[BlackClock "0:00:12"]

1. c4 {[%clk 0:03:00]}  Nf6 {[%clk 0:02:59]} 2. Nc3 {[%clk 0:03:00]}  g6 {[%clk 0:03:00]} 3. e4 {[%clk 0:02:59]}  d6 {[%clk 0:02:59]} 4. d4 {[%clk 0:03:00]}  Bg7 {[%clk 0:03:00]} 5. Bd3 {[%clk 0:03:00]}  O-O {[%clk 0:02:59]} 6. Nge2 {[%clk 0:03:01]}  c5 {[%clk 0:02:59]} 7. d5 {[%clk 0:02:47]}  e6 {[%clk 0:02:59]} 8. O-O {[%clk 0:02:48]}  exd5 {[%clk 0:02:58]} 9. exd5 {[%clk 0:02:48]}  a6 {[%clk 0:02:52]} 10. a4 {[%clk 0:02:47]}  Re8 {[%clk 0:02:47]} 11. h3 {[%clk 0:02:46]}  Nbd7 {[%clk 0:02:47]} 12. Bc2 {[%clk 0:02:46]}  Nh5 {[%clk 0:02:27]} 13. Ne4 {[%clk 0:02:35]}  Ne5 {[%clk 0:02:22]} 14. g4 {[%clk 0:02:06]}  Nf6 {[%clk 0:02:21]} 15. Bg5 {[%clk 0:01:59]}  h6 {[%clk 0:02:12]} 16. Nxf6+ {[%clk 0:01:59]}  Bxf6 {[%clk 0:02:13]} 17. Bxh6 {[%clk 0:01:59]}  Nxc4 {[%clk 0:02:11]} 18. Ng3 {[%clk 0:01:58]}  Nxb2 {[%clk 0:02:01]} 19. Qc1 {[%clk 0:01:58]}  Nc4 {[%clk 0:01:45]} 20. Rb1 {[%clk 0:01:57]}  b5 {[%clk 0:01:25]} 21. axb5 {[%clk 0:01:41]}  axb5 {[%clk 0:01:26]} 22. Rxb5 {[%clk 0:01:41]}  Ba6 {[%clk 0:01:25]} 23. Rb1 {[%clk 0:01:40]}  Ne5 {[%clk 0:01:24]} 24. Kg2 {[%clk 0:01:36]}  Bxf1+ {[%clk 0:01:23]} 25. Qxf1 {[%clk 0:01:36]}  Bg7 {[%clk 0:01:21]} 26. Bxg7 {[%clk 0:01:32]}  Kxg7 {[%clk 0:01:22]} 27. Rb2 {[%clk 0:01:30]}  Qf6 {[%clk 0:01:20]} 28. Rb3 {[%clk 0:01:23]}  Qf4 {[%clk 0:01:16]} 29. Ne4 {[%clk 0:01:13]}  Ra2 {[%clk 0:01:12]} 30. Qb1 {[%clk 0:01:12]}  Rea8 {[%clk 0:00:55]} 31. Nxd6 {[%clk 0:01:09]}  Nxg4 {[%clk 0:00:44]} 32. hxg4 {[%clk 0:01:10]}  Qxd6 {[%clk 0:00:44]} 33. Rf3 {[%clk 0:01:05]}  Qe5 {[%clk 0:00:36]} 34. Qb7 {[%clk 0:00:59]}  Qe8 {[%clk 0:00:27]} 35. Bb3 {[%clk 0:00:53]}  R2a7 {[%clk 0:00:26]} 36. Qb6 {[%clk 0:00:49]}  Qb8 {[%clk 0:00:20]} 37. Qf6+ {[%clk 0:00:49]}  Kg8 {[%clk 0:00:12]} 38. Rh3 {[%clk 0:00:49]} 1-0


[Site "https://www.chess.com"]

[Event "Titled Tuesday Blitz May 16 Early 2023"]
[White "Mendez Fortes, Eduardo Jesus"]
[Black "Nguyen, Ngoc Truong Son"]
[WhiteFideId "3502376"]
[BlackFideId "12401110"]
[WhiteElo "2307"]
[BlackElo "2556"]
[Result "0-1"]
[Round "03"]
[TimeControl "180+2"]
[Date "2023.05.16"]
[WhiteClock "0:00:15"]
[BlackClock "0:00:36"]

1. e4 {[%clk 0:02:55]}  c5 {[%clk 0:02:58]} 2. Nf3 {[%clk 0:02:54]}  Nc6 {[%clk 0:02:58]} 3. d4 {[%clk 0:02:54]}  cxd4 {[%clk 0:02:59]} 4. Nxd4 {[%clk 0:02:55]}  e6 {[%clk 0:02:59]} 5. Nc3 {[%clk 0:02:55]}  a6 {[%clk 0:02:59]} 6. Be3 {[%clk 0:02:55]}  Nf6 {[%clk 0:02:58]} 7. f3 {[%clk 0:02:48]}  Qc7 {[%clk 0:02:56]} 8. Qd2 {[%clk 0:02:48]}  b5 {[%clk 0:02:55]} 9. O-O-O {[%clk 0:02:47]}  Bb7 {[%clk 0:02:51]} 10. g4 {[%clk 0:02:42]}  h6 {[%clk 0:02:49]} 11. h4 {[%clk 0:02:41]}  Be7 {[%clk 0:02:44]} 12. Rg1 {[%clk 0:02:39]}  Rc8 {[%clk 0:02:29]} 13. g5 {[%clk 0:02:37]}  hxg5 {[%clk 0:02:29]} 14. hxg5 {[%clk 0:02:38]}  Nh5 {[%clk 0:02:21]} 15. Nxc6 {[%clk 0:02:23]}  Bxc6 {[%clk 0:02:18]} 16. Kb1 {[%clk 0:02:20]}  b4 {[%clk 0:02:02]} 17. Ne2 {[%clk 0:02:19]}  e5 {[%clk 0:01:55]} 18. Rh1 {[%clk 0:02:12]}  g6 {[%clk 0:01:52]} 19. Bh3 {[%clk 0:02:08]}  Rd8 {[%clk 0:01:40]} 20. Bg4 {[%clk 0:02:08]}  d5 {[%clk 0:01:39]} 21. exd5 {[%clk 0:02:03]}  Bxd5 {[%clk 0:01:32]} 22. Qe1 {[%clk 0:02:00]}  Qc6 {[%clk 0:01:14]} 23. Rh3 {[%clk 0:01:45]}  O-O {[%clk 0:01:00]} 24. Qh1 {[%clk 0:01:23]}  Bxa2+ {[%clk 0:00:49]} 25. Kxa2 {[%clk 0:01:18]}  Qxc2 {[%clk 0:00:49]} 26. Rc1 {[%clk 0:00:51]}  b3+ {[%clk 0:00:48]} 27. Ka1 {[%clk 0:00:49]}  Qxe2 {[%clk 0:00:46]} 28. Rxh5 {[%clk 0:00:27]}  gxh5 {[%clk 0:00:45]} 29. Qxh5 {[%clk 0:00:25]}  Ba3 {[%clk 0:00:36]} 30. Rb1 {[%clk 0:00:14]}  Bxb2+ {[%clk 0:00:36]} 31. Rxb2 {[%clk 0:00:14]}  Rd1+ {[%clk 0:00:36]} 32. Rb1 {[%clk 0:00:15]}  Qa2# {[%clk 0:00:36]} 0-1


[Site "https://www.chess.com"]

[Event "Titled Tuesday Blitz May 16 Early 2023"]
[White "Kramnik, Vladimir"]
[Black "Volkov, Maksim"]
[WhiteFideId "4101588"]
[BlackFideId "54123070"]
[WhiteElo "2703"]
[BlackElo "2297"]
[Result "1-0"]
[Round "03"]
[TimeControl "180+2"]
[Date "2023.05.16"]
[WhiteClock "0:00:06"]
[BlackClock "0:00:01"]

1. c4 {[%clk 0:03:00]}  e6 {[%clk 0:02:59]} 2. Nc3 {[%clk 0:03:00]}  d5 {[%clk 0:02:59]} 3. d4 {[%clk 0:03:00]}  c6 {[%clk 0:02:59]} 4. cxd5 {[%clk 0:03:00]}  exd5 {[%clk 0:02:59]} 5. Bf4 {[%clk 0:03:00]}  Bf5 {[%clk 0:02:57]} 6. e3 {[%clk 0:02:59]}  Nf6 {[%clk 0:02:57]} 7. Bd3 {[%clk 0:02:55]}  Bxd3 {[%clk 0:02:57]} 8. Qxd3 {[%clk 0:02:55]}  Be7 {[%clk 0:02:55]} 9. Nge2 {[%clk 0:02:54]}  O-O {[%clk 0:02:56]} 10. h3 {[%clk 0:02:49]}  Re8 {[%clk 0:02:52]} 11. g4 {[%clk 0:02:46]}  Ne4 {[%clk 0:02:40]} 12. O-O {[%clk 0:02:34]}  Bd6 {[%clk 0:02:33]} 13. Nxe4 {[%clk 0:02:33]}  dxe4 {[%clk 0:02:25]} 14. Qb3 {[%clk 0:02:32]}  Bxf4 {[%clk 0:02:16]} 15. Nxf4 {[%clk 0:02:28]}  Qb6 {[%clk 0:02:10]} 16. d5 {[%clk 0:02:14]}  Qxb3 {[%clk 0:01:46]} 17. axb3 {[%clk 0:02:14]}  cxd5 {[%clk 0:01:46]} 18. Nxd5 {[%clk 0:02:10]}  Na6 {[%clk 0:01:43]} 19. Rfd1 {[%clk 0:02:01]}  Red8 {[%clk 0:01:39]} 20. b4 {[%clk 0:01:57]}  Kf8 {[%clk 0:01:32]} 21. Rd4 {[%clk 0:01:56]}  Rd6 {[%clk 0:01:26]} 22. b5 {[%clk 0:01:42]}  Nc5 {[%clk 0:01:23]} 23. Nc3 {[%clk 0:01:31]}  Rxd4 {[%clk 0:01:10]} 24. exd4 {[%clk 0:01:31]}  Nb3 {[%clk 0:01:05]} 25. Ra4 {[%clk 0:01:31]}  Nd2 {[%clk 0:00:45]} 26. Kg2 {[%clk 0:01:27]}  Ke7 {[%clk 0:00:37]} 27. d5 {[%clk 0:01:14]}  Kd6 {[%clk 0:00:35]} 28. Rd4 {[%clk 0:01:13]}  Nb3 {[%clk 0:00:33]} 29. Nxe4+ {[%clk 0:01:10]}  Ke5 {[%clk 0:00:31]} 30. Rb4 {[%clk 0:01:10]}  Nc1 {[%clk 0:00:22]} 31. Ng5 {[%clk 0:00:56]}  f6 {[%clk 0:00:22]} 32. Nf3+ {[%clk 0:00:49]}  Kxd5 {[%clk 0:00:20]} 33. Rd4+ {[%clk 0:00:50]}  Ke6 {[%clk 0:00:19]} 34. Rc4 {[%clk 0:00:48]}  Nd3 {[%clk 0:00:19]} 35. Rc7 {[%clk 0:00:48]}  Nf4+ {[%clk 0:00:18]} 36. Kg3 {[%clk 0:00:46]}  Ne2+ {[%clk 0:00:19]} 37. Kh2 {[%clk 0:00:46]}  h5 {[%clk 0:00:08]} 38. g5 {[%clk 0:00:39]}  Kf5 {[%clk 0:00:07]} 39. Rxg7 {[%clk 0:00:36]}  Rc8 {[%clk 0:00:04]} 40. Rf7 {[%clk 0:00:32]}  Rc2 {[%clk 0:00:02]} 41. Rxf6+ {[%clk 0:00:31]}  Ke4 {[%clk 0:00:03]} 42. g6 {[%clk 0:00:27]}  Nf4 {[%clk 0:00:02]} 43. Kg3 {[%clk 0:00:23]}  h4+ {[%clk 0:00:01]} 44. Kg4 {[%clk 0:00:19]}  Nxg6 {[%clk 0:00:01]} 45. Rxg6 {[%clk 0:00:18]}  Rxf2 {[%clk 0:00:02]} 46. Re6+ {[%clk 0:00:17]}  Kd5 {[%clk 0:00:02]} 47. Re7 {[%clk 0:00:16]}  Rxb2 {[%clk 0:00:02]} 48. Rxb7 {[%clk 0:00:16]}  Rb4+ {[%clk 0:00:01]} 49. Kg5 {[%clk 0:00:15]}  Rb3 {[%clk 0:00:02]} 50. Kf4 {[%clk 0:00:13]}  Rb4+ {[%clk 0:00:02]} 51. Kf5 {[%clk 0:00:12]}  Rb3 {[%clk 0:00:02]} 52. Nxh4 {[%clk 0:00:10]}  Rxh3 {[%clk 0:00:02]} 53. Ng6 {[%clk 0:00:11]}  Rb3 {[%clk 0:00:02]} 54. Nf4+ {[%clk 0:00:10]}  Kc5 {[%clk 0:00:02]} 55. Ne6+ {[%clk 0:00:09]}  Kd5 {[%clk 0:00:03]} 56. Rxa7 {[%clk 0:00:08]}  Kd6 {[%clk 0:00:01]} 57. Nd4 {[%clk 0:00:07]}  Kc5 {[%clk 0:00:01]} 58. Nxb3+ {[%clk 0:00:06]} 1-0


[Site "https://www.chess.com"]

[Event "Titled Tuesday Blitz May 16 Early 2023"]
[White "Domingo Nunez, Ruben"]
[Black "Shimanov, Aleksandr"]
[WhiteFideId "22245570"]
[BlackFideId "4198603"]
[WhiteElo "2404"]
[BlackElo "2631"]
[Result "1-0"]
[Round "03"]
[TimeControl "180+2"]
[Date "2023.05.16"]
[WhiteClock "0:00:02"]
[BlackClock "0:00:00"]

1. c4 {[%clk 0:02:59]}  g6 {[%clk 0:02:58]} 2. Nc3 {[%clk 0:02:58]}  Bg7 {[%clk 0:02:58]} 3. d4 {[%clk 0:02:59]}  c5 {[%clk 0:02:57]} 4. d5 {[%clk 0:02:57]}  Bxc3+ {[%clk 0:02:56]} 5. bxc3 {[%clk 0:02:58]}  e5 {[%clk 0:02:56]} 6. h4 {[%clk 0:02:55]}  d6 {[%clk 0:02:43]} 7. h5 {[%clk 0:02:54]}  g5 {[%clk 0:02:41]} 8. h6 {[%clk 0:02:45]}  f6 {[%clk 0:02:28]} 9. e4 {[%clk 0:02:42]}  Ne7 {[%clk 0:02:18]} 10. Be2 {[%clk 0:02:34]}  Kd7 {[%clk 0:02:12]} 11. Bg4+ {[%clk 0:02:06]}  Kc7 {[%clk 0:02:12]} 12. Bxc8 {[%clk 0:02:07]}  Qxc8 {[%clk 0:02:10]} 13. Qf3 {[%clk 0:02:08]}  Nd7 {[%clk 0:02:05]} 14. Ne2 {[%clk 0:02:05]}  Qg8 {[%clk 0:02:00]} 15. Qg4 {[%clk 0:02:03]}  Qg6 {[%clk 0:01:50]} 16. Ng3 {[%clk 0:02:02]}  Rhf8 {[%clk 0:01:47]} 17. a4 {[%clk 0:01:41]}  a5 {[%clk 0:01:47]} 18. Be3 {[%clk 0:01:25]}  Nb6 {[%clk 0:01:41]} 19. Qe2 {[%clk 0:01:24]}  f5 {[%clk 0:01:35]} 20. exf5 {[%clk 0:01:24]}  Nxf5 {[%clk 0:01:36]} 21. Nf1 {[%clk 0:01:08]}  g4 {[%clk 0:01:31]} 22. Nd2 {[%clk 0:01:05]}  Nd7 {[%clk 0:01:26]} 23. Rb1 {[%clk 0:00:45]}  Rf7 {[%clk 0:01:20]} 24. Rb5 {[%clk 0:00:37]}  b6 {[%clk 0:01:20]} 25. Kd1 {[%clk 0:00:34]}  Raf8 {[%clk 0:01:16]} 26. Rf1 {[%clk 0:00:29]}  Nxh6 {[%clk 0:01:00]} 27. Bxh6 {[%clk 0:00:22]}  Qxh6 {[%clk 0:01:01]} 28. Ne4 {[%clk 0:00:23]}  Qg6 {[%clk 0:01:00]} 29. Kc1 {[%clk 0:00:11]}  h5 {[%clk 0:00:59]} 30. Kb2 {[%clk 0:00:11]}  h4 {[%clk 0:00:58]} 31. Ka3 {[%clk 0:00:12]}  h3 {[%clk 0:00:56]} 32. gxh3 {[%clk 0:00:13]}  gxh3 {[%clk 0:00:57]} 33. f3 {[%clk 0:00:12]}  Rh8 {[%clk 0:00:51]} 34. Rh1 {[%clk 0:00:12]}  Qg2 {[%clk 0:00:47]} 35. Qd1 {[%clk 0:00:03]}  Qxf3 {[%clk 0:00:36]} 36. Qb1 {[%clk 0:00:03]}  Rb8 {[%clk 0:00:20]} 37. Ng5 {[%clk 0:00:02]}  Qxc3+ {[%clk 0:00:20]} 38. Rb3 {[%clk 0:00:03]}  Qxc4 {[%clk 0:00:09]} 39. Nxf7 {[%clk 0:00:04]}  Qxd5 {[%clk 0:00:10]} 40. Ng5 {[%clk 0:00:03]}  c4 {[%clk 0:00:10]} 41. Rc3 {[%clk 0:00:03]}  Qc5+ {[%clk 0:00:11]} 42. Ka2 {[%clk 0:00:04]}  d5 {[%clk 0:00:12]} 43. Ne6+ {[%clk 0:00:03]}  Kd6 {[%clk 0:00:08]} 44. Nxc5 {[%clk 0:00:04]}  Nxc5 {[%clk 0:00:07]} 45. Rhxh3 {[%clk 0:00:04]}  Nxa4 {[%clk 0:00:07]} 46. Rh6+ {[%clk 0:00:04]}  Kc5 {[%clk 0:00:07]} 47. Ra3 {[%clk 0:00:02]}  b5 {[%clk 0:00:04]} 48. Rxa4 {[%clk 0:00:03]}  e4 {[%clk 0:00:02]} 49. Rxa5 {[%clk 0:00:03]}  c3 {[%clk 0:00:02]} 50. Qb3 {[%clk 0:00:03]}  Kd4 {[%clk 0:00:02]} 51. Qb4+ {[%clk 0:00:03]}  Kd3 {[%clk 0:00:03]} 52. Rd6 {[%clk 0:00:02]}  Ke2 {[%clk 0:00:02]} 53. Qxc3 {[%clk 0:00:02]}  Rc8 {[%clk 0:00:00]} 54. Qxc8 {[%clk 0:00:02]} 1-0


[Site "https://www.chess.com"]

[Event "Titled Tuesday Blitz May 16 Early 2023"]
[White "Durarbayli, Vasif"]
[Black "Korchmar, Vasiliy"]
[WhiteFideId "13402935"]
[BlackFideId "24131750"]
[WhiteElo "2551"]
[BlackElo "2370"]
[Result "1-0"]
[Round "03"]
[TimeControl "180+2"]
[Date "2023.05.16"]
[WhiteClock "0:00:05"]
[BlackClock "0:00:00"]

1. e4 {[%clk 0:03:00]}  c5 {[%clk 0:02:59]} 2. Nf3 {[%clk 0:03:00]}  d6 {[%clk 0:03:00]} 3. d4 {[%clk 0:03:00]}  cxd4 {[%clk 0:03:01]} 4. Nxd4 {[%clk 0:03:01]}  Nf6 {[%clk 0:03:01]} 5. Nc3 {[%clk 0:03:02]}  Nc6 {[%clk 0:03:02]} 6. f3 {[%clk 0:03:00]}  e5 {[%clk 0:03:01]} 7. Nb3 {[%clk 0:03:01]}  Be7 {[%clk 0:03:01]} 8. Be3 {[%clk 0:03:02]}  O-O {[%clk 0:03:01]} 9. Qd2 {[%clk 0:02:59]}  Be6 {[%clk 0:03:01]} 10. O-O-O {[%clk 0:02:59]}  a5 {[%clk 0:02:59]} 11. Bb5 {[%clk 0:02:50]}  Nb4 {[%clk 0:02:49]} 12. a3 {[%clk 0:02:15]}  d5 {[%clk 0:02:47]} 13. axb4 {[%clk 0:01:47]}  d4 {[%clk 0:02:43]} 14. Nxd4 {[%clk 0:01:37]}  exd4 {[%clk 0:02:38]} 15. Qxd4 {[%clk 0:01:36]}  Qc8 {[%clk 0:01:39]} 16. bxa5 {[%clk 0:01:07]}  Rxa5 {[%clk 0:01:40]} 17. Qb6 {[%clk 0:01:07]}  Ra1+ {[%clk 0:01:27]} 18. Kd2 {[%clk 0:01:06]}  Rxd1+ {[%clk 0:01:00]} 19. Rxd1 {[%clk 0:01:05]}  Bb4 {[%clk 0:01:01]} 20. Bd3 {[%clk 0:00:55]}  Bxc3+ {[%clk 0:00:42]} 21. bxc3 {[%clk 0:00:56]}  Nd7 {[%clk 0:00:41]} 22. Qd6 {[%clk 0:00:44]}  Rd8 {[%clk 0:00:37]} 23. Bd4 {[%clk 0:00:43]}  Nf8 {[%clk 0:00:21]} 24. Qe5 {[%clk 0:00:36]}  f6 {[%clk 0:00:20]} 25. Qc5 {[%clk 0:00:35]}  Qb8 {[%clk 0:00:19]} 26. g3 {[%clk 0:00:33]}  Bf7 {[%clk 0:00:19]} 27. Rb1 {[%clk 0:00:27]}  Ne6 {[%clk 0:00:19]} 28. Qb6 {[%clk 0:00:28]}  Ng5 {[%clk 0:00:10]} 29. Ke3 {[%clk 0:00:27]}  Qc8 {[%clk 0:00:10]} 30. h4 {[%clk 0:00:21]}  Ne6 {[%clk 0:00:03]} 31. Qxb7 {[%clk 0:00:21]}  Nxd4 {[%clk 0:00:04]} 32. Qxc8 {[%clk 0:00:17]}  Nxc2+ {[%clk 0:00:04]} 33. Bxc2 {[%clk 0:00:18]}  Rxc8 {[%clk 0:00:05]} 34. Bd3 {[%clk 0:00:15]}  h5 {[%clk 0:00:04]} 35. Kd2 {[%clk 0:00:12]}  Rd8 {[%clk 0:00:04]} 36. Kc2 {[%clk 0:00:12]}  Ra8 {[%clk 0:00:03]} 37. c4 {[%clk 0:00:11]}  Ra2+ {[%clk 0:00:03]} 38. Rb2 {[%clk 0:00:12]}  Ra1 {[%clk 0:00:04]} 39. c5 {[%clk 0:00:09]}  Ra5 {[%clk 0:00:04]} 40. Bb5 {[%clk 0:00:08]}  Kf8 {[%clk 0:00:02]} 41. Kd2 {[%clk 0:00:05]}  Ke7 {[%clk 0:00:03]} 42. Ke3 {[%clk 0:00:05]}  Kd8 {[%clk 0:00:03]} 43. Kf4 {[%clk 0:00:05]}  Kc7 {[%clk 0:00:03]} 44. g4 {[%clk 0:00:05]}  hxg4 {[%clk 0:00:03]} 45. fxg4 {[%clk 0:00:06]}  Ra1 {[%clk 0:00:03]} 46. Rd2 {[%clk 0:00:05]}  Rc1 {[%clk 0:00:00]} 47. Rd7+ {[%clk 0:00:05]} 1-0


[Site "https://www.chess.com"]

[Event "Titled Tuesday Blitz May 16 Early 2023"]
[White "Kamsky, Gata"]
[Black "Ehlvest, Jaan"]
[WhiteFideId "2000024"]
[BlackFideId "4500016"]
[WhiteElo "2660"]
[BlackElo "2442"]
[Result "0-1"]
[Round "03"]
[TimeControl "180+2"]
[Date "2023.05.16"]
[WhiteClock "0:00:00"]
[BlackClock "0:00:05"]

1. d4 {[%clk 0:03:00]}  Nf6 {[%clk 0:02:58]} 2. Bf4 {[%clk 0:02:58]}  c5 {[%clk 0:02:57]} 3. e3 {[%clk 0:02:57]}  Qb6 {[%clk 0:02:56]} 4. Na3 {[%clk 0:02:56]}  cxd4 {[%clk 0:02:42]} 5. Qxd4 {[%clk 0:02:01]}  Qa5+ {[%clk 0:02:27]} 6. c3 {[%clk 0:01:57]}  Nc6 {[%clk 0:02:26]} 7. Qd3 {[%clk 0:01:50]}  e5 {[%clk 0:02:17]} 8. Nc4 {[%clk 0:01:49]}  Qc7 {[%clk 0:02:00]} 9. Bg5 {[%clk 0:01:46]}  d5 {[%clk 0:01:59]} 10. Nd2 {[%clk 0:01:45]}  Be6 {[%clk 0:01:53]} 11. Ne2 {[%clk 0:01:17]}  Nd7 {[%clk 0:01:39]} 12. Nb3 {[%clk 0:01:06]}  a5 {[%clk 0:01:30]} 13. a4 {[%clk 0:00:59]}  f6 {[%clk 0:01:14]} 14. Bh4 {[%clk 0:00:58]}  Be7 {[%clk 0:01:13]} 15. Nec1 {[%clk 0:00:39]}  h5 {[%clk 0:01:07]} 16. h3 {[%clk 0:00:33]}  O-O-O {[%clk 0:00:59]} 17. Bg3 {[%clk 0:00:30]}  Bd6 {[%clk 0:00:47]} 18. Qb5 {[%clk 0:00:30]}  g5 {[%clk 0:00:40]} 19. Nd3 {[%clk 0:00:27]}  f5 {[%clk 0:00:39]} 20. Ndc5 {[%clk 0:00:25]}  Nxc5 {[%clk 0:00:29]} 21. Nxc5 {[%clk 0:00:25]}  Bf7 {[%clk 0:00:29]} 22. Nb3 {[%clk 0:00:20]}  f4 {[%clk 0:00:24]} 23. Bh2 {[%clk 0:00:20]}  g4 {[%clk 0:00:19]} 24. O-O-O {[%clk 0:00:19]}  g3 {[%clk 0:00:17]} 25. Bg1 {[%clk 0:00:17]}  fxe3 {[%clk 0:00:14]} 26. fxg3 {[%clk 0:00:16]}  d4 {[%clk 0:00:12]} 27. Kb1 {[%clk 0:00:07]}  Bxb3 {[%clk 0:00:11]} 28. Qxb3 {[%clk 0:00:06]}  Kb8 {[%clk 0:00:12]} 29. Bd3 {[%clk 0:00:06]}  Bc5 {[%clk 0:00:12]} 30. Bh2 {[%clk 0:00:05]}  Ka8 {[%clk 0:00:11]} 31. g4 {[%clk 0:00:05]}  Qb6 {[%clk 0:00:10]} 32. Qxb6 {[%clk 0:00:05]}  Bxb6 {[%clk 0:00:11]} 33. Be4 {[%clk 0:00:04]}  hxg4 {[%clk 0:00:10]} 34. Bxc6 {[%clk 0:00:04]}  bxc6 {[%clk 0:00:10]} 35. Bxe5 {[%clk 0:00:04]}  e2 {[%clk 0:00:07]} 36. Bxh8 {[%clk 0:00:02]}  exd1=Q+ {[%clk 0:00:06]} 37. Rxd1 {[%clk 0:00:02]}  Rxh8 {[%clk 0:00:06]} 38. cxd4 {[%clk 0:00:02]}  gxh3 {[%clk 0:00:07]} 39. gxh3 {[%clk 0:00:02]}  Rxh3 {[%clk 0:00:07]} 40. d5 {[%clk 0:00:03]}  c5 {[%clk 0:00:06]} 41. Re1 {[%clk 0:00:02]}  Rh7 {[%clk 0:00:05]} 42. Re6 {[%clk 0:00:01]}  Kb7 {[%clk 0:00:05]} 43. Kc2 {[%clk 0:00:02]}  Rd7 {[%clk 0:00:05]} 44. Re5 {[%clk 0:00:02]}  Bc7 {[%clk 0:00:05]} 45. Rf5 {[%clk 0:00:02]}  Re7 {[%clk 0:00:05]} 46. Kd3 {[%clk 0:00:00]}  Re5 {[%clk 0:00:05]} 0-1


[Site "https://www.chess.com"]